[Event "Chinese League Div-A Rapid 2022"]
[Site "Fuling,Chongqing"]
[Date "2022.09.16"]
[Round "9.26"]
[White "Li, Di"]
[Black "Zhao, Jun"]
[Result "1/2-1/2"]
[ECO "A07"]
[WhiteElo "2575"]
[BlackElo "2619"]
[Annotator "ChessBase"]
[PlyCount "100"]
[EventDate "2022.09.07"]
[EventType "team-tourn"]
[EventCountry "CHN"]
[SourceTitle "playchess.com"]
[Source "ChessBase"]
[SourceQuality "1"]
[TimeControl "1500+10"]

1. Nf3 {[%emt 0:00:02]} d5 {[%emt 0:00:07]} 2. g3 {[%emt 0:00:03]} Bg4 {[%emt 0:00:10]} 3. Bg2 {[%emt 0:00:05]} c6 {[%emt 0:00:11]} 4. O-O {[%emt 0:00:11]} Nd7 {[%emt 0:00:03]} 5. h3 {[%emt 0:00:07]} Bxf3 {[%emt 0:00:37]} 6. Bxf3 {[%emt 0:00:02]} e6 {[%emt 0:00:14]} 7. d3 {[%emt 0:00:49]} Bd6 {[%emt 0:01:12]} 8. e4 {[%emt 0:00:11]} Ne7 {[%emt 0:00:08]} 9. Bg2 {[%emt 0:00:10]} O-O {[%emt 0:00:46]} 10. Nd2 {[%emt 0:00:22]} a5 {[%emt 0:01:46]} 11. a4 {[%emt 0:00:18]} b5 {[%emt 0:01:16]} 12. exd5 {[%emt 0:03:24]} exd5 {[%emt 0:00:03]} 13. Nf3 {[%emt 0:00:23]} bxa4 {[%emt 0:02:07]} 14. Rxa4 {[%emt 0:00:10]} Nb6 {[%emt 0:00:05]} 15. Ra2 {[%emt 0:00:10]} a4 {[%emt 0:00:10]} 16. Re1 {[%emt 0:01:46]} Qc7 {[%emt 0:00:15]} 17. h4 {[%emt 0:00:15]} Rfe8 {[%emt 0:00:28]} 18. h5 {[%emt 0:00:22]} h6 {[%emt 0:00:03]} 19. Nh4 {[%emt 0:00:31]} Qd7 {[%emt 0:01:44]} 20. Bd2 {[%emt 0:02:28]} c5 {[%emt 0:01:02]} 21. Kh2 {[%emt 0:01:39]} Nc6 {[%emt 0:00:20]} 22. Rxe8+ {[%emt 0:00:28]} Rxe8 {[%emt 0:00:13]} 23. Bh3 {[%emt 0:00:14]} Qd8 {[%emt 0:00:24]} 24. Nf5 {[%emt 0:00:10]} Bf8 {[%emt 0:00:19]} 25. Ra1 {[%emt 0:00:26]} Qf6 {[%emt 0:00:41]} 26. Kg1 {[%emt 0:01:04]} Re5 {[%emt 0:02:37]} 27. Ne3 {[%emt 0:01:32]} Re8 {[%emt 0:00:34]} 28. Bg2 {[%emt 0:00:53]} Rd8 {[%emt 0:00:41]} 29. c3 {[%emt 0:05:32]} Qe6 {[%emt 0:02:01]} 30. Qg4 {[%emt 0:00:25]} Ne5 {[%emt 0:00:26]} 31. Qe2 {[%emt 0:01:34]} c4 {[%emt 0:00:57]} 32. d4 {[%emt 0:00:14]} Nd3 {[%emt 0:00:06]} 33. Ra2 {[%emt 0:00:12]} Qd7 {[%emt 0:01:26]} 34. Qd1 {[%emt 0:00:06]} Qb5 {[%emt 0:00:08]} 35. Qa1 {[%emt 0:00:13]} Rd6 {[%emt 0:02:12]} 36. Bf3 {[%emt 0:00:44]} Rf6 {[%emt 0:00:15]} 37. Kg2 {[%emt 0:00:08]} Qd7 {[%emt 0:01:35]} 38. Qd1 {[%emt 0:00:14]} Bd6 {[%emt 0:00:33]} 39. Ng4 {[%emt 0:00:42]} Re6 {[%emt 0:00:11]} 40. Ne3 {[%emt 0:00:28]} Rf6 {[%emt 0:00:01]} 41. Ng4 {[%emt 0:00:08]} Re6 {[%emt 0:00:13]} 42. Ne3 {[%emt 0:00:11]} Qb5 {[%emt 0:00:30]} 43. Qa1 {[%emt 0:02:25]} Bc7 {[%emt 0:00:16]} 44. Bd1 {[%emt 0:00:27]} Rf6 {[%emt 0:01:49]} 45. Ng4 {[%emt 0:00:04]} Re6 {[%emt 0:00:01]} 46. Ne3 {[%emt 0:00:15]} Rf6 {[%emt 0:00:06]} 47. Ng4 {[%emt 0:00:06]} Re6 {[%emt 0:01:32]} 48. Ne3 {[%emt 0:00:07]} Rf6 {[%emt 0:00:22]} 49. Ng4 {[%emt 0:00:09]} Re6 {[%emt 0:00:04]} 50. Ne3 {[%emt 0:00:25]} Rf6 {[%emt 0:00:20]} 1/2-1/2

[Event "Chinese League Div-A Rapid 2022"]
[Site "Fuling,Chongqing"]
[Date "2022.09.16"]
[Round "9.27"]
[White "Xu, Xiangyu"]
[Black "Huang, Renjie"]
[Result "1/2-1/2"]
[ECO "D35"]
[WhiteElo "2571"]
[BlackElo "2446"]
[Annotator "ChessBase"]
[PlyCount "83"]
[EventDate "2022.09.07"]
[EventType "team-tourn"]
[EventCountry "CHN"]
[SourceTitle "playchess.com"]
[Source "ChessBase"]
[SourceQuality "1"]
[TimeControl "1500+10"]

1. d4 {[%emt 0:00:03]} d5 {[%emt 0:00:01]} 2. c4 {[%emt 0:00:02]} e6 {[%emt 0:00:01]} 3. Nc3 {[%emt 0:00:02]} Nf6 {[%emt 0:00:01]} 4. cxd5 {[%emt 0:00:02]} exd5 {[%emt 0:00:01]} 5. Bg5 {[%emt 0:00:03]} c6 {[%emt 0:00:02]} 6. e3 {[%emt 0:00:02]} Be7 {[%emt 0:00:01]} 7. Bd3 {[%emt 0:00:05]} Nbd7 {[%emt 0:00:01]} 8. h3 {[%emt 0:00:07]} g6 {[%emt 0:00:02]} 9. Bh6 {[%emt 0:00:14]} Bf8 {[%emt 0:01:46]} 10. Bf4 {[%emt 0:00:04]} Bg7 {[%emt 0:00:05]} 11. Nf3 {[%emt 0:00:07]} O-O {[%emt 0:00:03]} 12. O-O {[%emt 0:00:19]} Re8 {[%emt 0:00:01]} 13. b4 {[%emt 0:00:52]} Qe7 {[%emt 0:00:42]} 14. Qb3 {[%emt 0:00:20]} Nb6 {[%emt 0:00:36]} 15. b5 {[%emt 0:01:57]} Be6 {[%emt 0:02:12]} 16. bxc6 {[%emt 0:01:44]} bxc6 {[%emt 0:00:01]} 17. Na4 {[%emt 0:00:17]} Nfd7 {[%emt 0:00:08]} 18. Rab1 {[%emt 0:01:25]} c5 {[%emt 0:01:58]} 19. Nxc5 {[%emt 0:00:52]} Nxc5 {[%emt 0:00:02]} 20. dxc5 {[%emt 0:00:02]} Qxc5 {[%emt 0:00:08]} 21. Rfc1 {[%emt 0:00:09]} Nc4 {[%emt 0:00:23]} 22. Ng5 {[%emt 0:00:35]} Rac8 {[%emt 0:00:53]} 23. Qa4 {[%emt 0:00:10]} Qa3 {[%emt 0:05:46]} 24. Qxa3 {[%emt 0:00:59]} Nxa3 {[%emt 0:00:02]} 25. Rxc8 {[%emt 0:00:05]} Bxc8 {[%emt 0:00:01]} 26. Rb8 {[%emt 0:00:22]} Nc4 {[%emt 0:01:47]} 27. e4 {[%emt 0:05:06]} h6 {[%emt 0:04:12]} 28. Nf3 {[%emt 0:00:03]} Nb6 {[%emt 0:00:14]} 29. Bb5 {[%emt 0:01:15]} Nd7 {[%emt 0:01:57]} 30. Ra8 {[%emt 0:00:03]} dxe4 {[%emt 0:00:44]} 31. Nd2 {[%emt 0:00:23]} Nb6 {[%emt 0:01:27]} 32. Rxa7 {[%emt 0:00:03]} Rd8 {[%emt 0:00:05]} 33. Nxe4 {[%emt 0:00:17]} Be6 {[%emt 0:02:14]} 34. a4 {[%emt 0:00:40]} Rd4 {[%emt 0:00:01]} 35. f3 {[%emt 0:01:11]} Nd5 {[%emt 0:00:24]} 36. Bg3 {[%emt 0:02:08]} Rd1+ {[%emt 0:00:14]} 37. Kh2 {[%emt 0:00:02]} Bd4 {[%emt 0:00:02]} 38. Ra8+ {[%emt 0:00:07]} Kg7 {[%emt 0:00:01]} 39. Bf2 {[%emt 0:02:13]} Be5+ {[%emt 0:00:01]} 40. Bg3 {[%emt 0:01:15]} Bd4 {[%emt 0:00:01]} 41. Bf2 {[%emt 0:00:58]} Be5+ {[%emt 0:00:01]} 42. Bg3 {[%emt 0:00:14]} 1/2-1/2

[Event "Chinese League Div-A Rapid 2022"]
[Site "Fuling,Chongqing"]
[Date "2022.09.16"]
[Round "9.28"]
[White "Zhao, Yuanhe"]
[Black "Liu, Qingnan"]
[Result "1/2-1/2"]
[ECO "A17"]
[WhiteElo "2440"]
[BlackElo "2542"]
[Annotator "ChessBase"]
[PlyCount "145"]
[EventDate "2022.09.07"]
[EventType "team-tourn"]
[EventCountry "CHN"]
[SourceTitle "playchess.com"]
[Source "ChessBase"]
[SourceQuality "1"]
[TimeControl "1500+10"]

1. Nf3 {[%emt 0:00:02]} Nf6 {[%emt 0:00:03]} 2. c4 {[%emt 0:00:02]} e6 {[%emt 0:00:01]} 3. Nc3 {[%emt 0:00:02]} d5 {[%emt 0:00:02]} 4. e3 {[%emt 0:00:01]} c5 {[%emt 0:00:04]} 5. cxd5 {[%emt 0:00:07]} exd5 {[%emt 0:00:04]} 6. Bb5+ {[%emt 0:00:04]} Bd7 {[%emt 0:02:04]} 7. Be2 {[%emt 0:00:02]} a6 {[%emt 0:01:49]} 8. d4 {[%emt 0:01:41]} c4 {[%emt 0:01:03]} 9. O-O {[%emt 0:00:36]} Bb4 {[%emt 0:00:23]} 10. Ne5 {[%emt 0:00:35]} O-O {[%emt 0:00:15]} 11. Qc2 {[%emt 0:00:25]} Nc6 {[%emt 0:00:20]} 12. a3 {[%emt 0:01:11]} Ba5 {[%emt 0:00:18]} 13. f4 {[%emt 0:00:31]} Qc8 {[%emt 0:00:31]} 14. Bf3 {[%emt 0:00:53]} Bf5 {[%emt 0:00:38]} 15. Qf2 {[%emt 0:00:03]} Bxc3 {[%emt 0:00:31]} 16. bxc3 {[%emt 0:00:01]} Ne4 {[%emt 0:01:14]} 17. Qe1 {[%emt 0:00:37]} f6 {[%emt 0:03:42]} 18. Nxc6 {[%emt 0:00:03]} bxc6 {[%emt 0:00:01]} 19. a4 {[%emt 0:00:05]} Qe6 {[%emt 0:02:12]} 20. Ba3 {[%emt 0:00:42]} Rfb8 {[%emt 0:00:01]} 21. a5 {[%emt 0:00:50]} Rb3 {[%emt 0:00:50]} 22. Bb4 {[%emt 0:00:02]} Re8 {[%emt 0:00:33]} 23. Qc1 {[%emt 0:00:54]} Bg4 {[%emt 0:00:08]} 24. Bxe4 {[%emt 0:00:07]} Qxe4 {[%emt 0:00:03]} 25. Re1 {[%emt 0:00:04]} Rb8 {[%emt 0:02:07]} 26. Qd2 {[%emt 0:00:42]} R8xb4 {[%emt 0:00:59]} 27. cxb4 {[%emt 0:00:03]} c3 {[%emt 0:00:01]} 28. Qf2 {[%emt 0:00:12]} Rb2 {[%emt 0:00:41]} 29. Qg3 {[%emt 0:01:00]} h5 {[%emt 0:02:16]} 30. Rac1 {[%emt 0:00:16]} Qd3 {[%emt 0:02:35]} 31. e4 {[%emt 0:01:35]} Qxd4+ {[%emt 0:00:02]} 32. Kh1 {[%emt 0:00:01]} c2 {[%emt 0:01:35]} 33. e5 {[%emt 0:00:03]} Kf7 {[%emt 0:01:34]} 34. Qa3 {[%emt 0:02:26]} Bf5 {[%emt 0:00:20]} 35. b5 {[%emt 0:00:36]} cxb5 {[%emt 0:00:09]} 36. Qd6 {[%emt 0:01:08]} Be6 {[%emt 0:01:45]} 37. f5 {[%emt 0:00:20]} Bxf5 {[%emt 0:00:02]} 38. e6+ {[%emt 0:00:02]} Bxe6 {[%emt 0:00:01]} 39. Qxe6+ {[%emt 0:00:14]} Kg6 {[%emt 0:00:00]} 40. Qxa6 {[%emt 0:04:01]} b4 {[%emt 0:00:03]} 41. Qb5 {[%emt 0:06:36]} Ra2 {[%emt 0:00:01]} 42. a6 {[%emt 0:00:26]} Kh6 {[%emt 0:00:07]} 43. a7 {[%emt 0:00:54]} Qc3 {[%emt 0:00:59]} 44. Qxd5 {[%emt 0:01:14]} Rxa7 {[%emt 0:00:00]} 45. Re8 {[%emt 0:00:10]} g6 {[%emt 0:00:01]} 46. Qf3 {[%emt 0:00:58]} Qxf3 {[%emt 0:00:06]} 47. gxf3 {[%emt 0:00:03]} b3 {[%emt 0:00:01]} 48. Rb8 {[%emt 0:00:09]} Rd7 {[%emt 0:00:01]} 49. Rxb3 {[%emt 0:00:19]} Rd1+ {[%emt 0:00:00]} 50. Kg2 {[%emt 0:00:01]} Rxc1 {[%emt 0:00:01]} 51. Rc3 {[%emt 0:00:01]} Kg5 {[%emt 0:00:01]} 52. Rc4 {[%emt 0:00:16]} Kf5 {[%emt 0:00:09]} 53. h4 {[%emt 0:00:03]} g5 {[%emt 0:00:05]} 54. hxg5 {[%emt 0:00:13]} fxg5 {[%emt 0:00:11]} 55. Rc8 {[%emt 0:00:16]} h4 {[%emt 0:00:02]} 56. Rf8+ {[%emt 0:00:12]} Kg6 {[%emt 0:00:03]} 57. Rg8+ {[%emt 0:00:09]} Kh7 {[%emt 0:00:08]} 58. Rc8 {[%emt 0:00:03]} h3+ {[%emt 0:00:14]} 59. Kh2 {[%emt 0:00:01]} Rf1 {[%emt 0:00:01]} 60. Rxc2 {[%emt 0:00:08]} Rxf3 {[%emt 0:00:02]} 61. Rc6 {[%emt 0:00:08]} Kg7 {[%emt 0:00:01]} 62. Rd6 {[%emt 0:00:08]} Kf7 {[%emt 0:00:01]} 63. Ra6 {[%emt 0:00:03]} Re3 {[%emt 0:00:16]} 64. Rb6 {[%emt 0:00:32]} g4 {[%emt 0:00:26]} 65. Rb4 {[%emt 0:00:24]} Re2+ {[%emt 0:00:00]} 66. Kh1 {[%emt 0:00:12]} Rg2 {[%emt 0:00:00]} 67. Rf4+ {[%emt 0:00:05]} Ke6 {[%emt 0:00:00]} 68. Re4+ {[%emt 0:00:03]} Kf5 {[%emt 0:00:00]} 69. Rf4+ {[%emt 0:00:01]} Kg5 {[%emt 0:00:00]} 70. Rf5+ {[%emt 0:00:03]} Kh4 {[%emt 0:00:00]} 71. Rh5+ {[%emt 0:00:03]} Kg3 {[%emt 0:00:00]} 72. Rxh3+ {[%emt 0:00:03]} Kf2 {[%emt 0:00:00]} 73. Rf3+ {[%emt 0:00:12]} 1/2-1/2

[Event "Chinese League Div-A Rapid 2022"]
[Site "Fuling,Chongqing"]
[Date "2022.09.16"]
[Round "9.29"]
[White "Hu, Yu A."]
[Black "Ren, Xiaoyi"]
[Result "1-0"]
[ECO "B08"]
[WhiteElo "2074"]
[BlackElo "2250"]
[Annotator "TA"]
[PlyCount "103"]
[EventDate "2022.09.07"]
[EventType "team-tourn"]
[EventCountry "CHN"]
[SourceTitle "playchess.com"]
[Source "ChessBase"]
[SourceQuality "1"]
[TimeControl "1500+10"]

{[%evp 18,103,21,9,37,41,44,29,37,0,11,9,6,0,19,6,103,65,146,148,147,118,112,135,206,60,64,-85,-88,-78,-25,-25,-25,-25,-25,-25,-25,-58,-26,-62,-97,-113,0,0,0,-108,60,50,39,0,14,0,0,0,164,158,120,110,200,200,206,212,540,386,777,755,6211,5722,5389,5289,29987,29988,29994,29990,29990,29991,29992,29988,29992,29969,29969,29970,29967,29963,29941,29956,29980,6083]} 1. e4 {[%emt 0:00:03]} d6 {[%emt 0:00:41]} 2. d4 {[%emt 0:00:05]} g6 {[%emt 0:00:08]} 3. Nc3 {[%emt 0:00:14]} Bg7 {[%emt 0:00:07]} 4. Be3 {[%emt 0:00:16]} c6 {[%emt 0:00:21]} 5. a4 {[%emt 0:00:29]} Nd7 {[%emt 0:00:31][%cal Bb8d7,Bd7f8,Bf8e6][%mdl 32]} 6. Nf3 {[%emt 0:00:09]} Ngf6 {[%emt 0:00:14]} 7. h3 {[%emt 0:00:06]} O-O {[%emt 0:00:13]} 8. Bd3 {[%emt 0:00:28]} e5 {[%emt 0:00:05]} 9. O-O {[%emt 0:00:03]} Re8 {[%emt 0:00:45]} 10. Qd2 {[%emt 0:00:41]} Nf8 {[%emt 0:03:29] B08: Pirc Defence: Classical System.} 11. Rad1 {[%emt 0:00:55]} Qc7 {[%emt 0:00:55] [#]} 12. dxe5 $146 {[%emt 0:02:31]} ({Predecessor:} 12. Rfe1 a6 13. b4 Ne6 14. a5 exd4 15. Nxd4 c5 16. Nb3 c4 17. Nd5 Nxd5 18. exd5 cxd3 19. dxe6 dxc2 {0-1 (28) Humphrey,J (2158)-Rujevic,M (2273) Canberra 2004}) 12... dxe5 {[%emt 0:00:08] White has an edge.} 13. Bh6 {[%emt 0:00:15]} Ne6 {[%emt 0:00:26]} 14. Bxg7 {[%emt 0:01:36]} Kxg7 {[%emt 0:00:05]} 15. Bc4 {[%emt 0:00:02]} Rd8 {[%emt 0:04:12]} 16. Qe3 {[%emt 0:00:07]} Bd7 {[%emt 0:00:36]} (16... Ne8 $11) 17. Rd2 {[%emt 0:01:22] White has more active pieces.} a5 {[%emt 0:03:43]} ({Better is} 17... Nf4 $14) 18. Rfd1 $16 {[%emt 0:00:04]} Re8 {[%emt 0:00:51]} 19. Bxe6 {[%emt 0:04:25]} Bxe6 {[%emt 0:00:18]} 20. Qc5 $1 {[%emt 0:00:06]} Nd7 {[%emt 0:05:43] [#]} (20... Rac8 $16 {is a better defense.}) 21. Nb5 {[%emt 0:11:50]} (21. Rxd7 $1 $18 {[%mdl 512]} Bxd7 22. Nd5) 21... Qd8 $14 {[%emt 0:04:25] [#]} ({Not} 21... Nxc5 22. Nxc7 f6 23. Nxa8 (23. Nxe8+ Rxe8 24. Rd8 Re7 $16) 23... Rxa8 24. Rd8 (24. Rd6 Kf7 $16) 24... Rxd8 25. Rxd8 $16) (21... Qc8 22. Rxd7 $1 Bxd7 23. Nd6 $16) 22. Qc3 {[%emt 0:00:00]} (22. Rxd7 $1 $14 {stays ahead.} Bxd7 23. Nd6) 22... cxb5 $17 {[%emt 0:00:08]} 23. Nxe5 {[%emt 0:00:00]} b4 {[%emt 0:00:02]} (23... Rc8 $17 24. Qe3 Re7) 24. Qe3 $11 {[%emt 0:00:00][%cal Re5d7]} Nxe5 {[%emt 0:00:38]} 25. Rxd8 {[%emt 0:00:00]} Raxd8 {[%emt 0:00:01]} 26. Rxd8 {[%emt 0:00:00]} Rxd8 {[%emt 0:00:01]} 27. Qb6 {[%emt 0:00:00]} Rd1+ {[%emt 0:00:07]} 28. Kh2 {[%emt 0:00:00]} Nc4 {[%emt 0:00:06][%csl LRb2,LRb6]} 29. Qc5 {[%emt 0:00:00]} Nd2 {[%emt 0:00:22]} (29... h6 $17 {Hoping for ...Rd2.} 30. b3 Nd2) 30. Qe5+ {[%emt 0:00:00]} Kg8 {[%emt 0:00:12]} 31. Kg3 {[%emt 0:00:49]} (31. Qb8+ $11 {remains equal.} Kg7 32. Qe5+ Kh6 33. Qf4+ Kg7 34. Qe5+) 31... Nc4 $2 {[%emt 0:00:22]} ({Black should try} 31... h6 $17 {Strongly threatening ...Nc4.} 32. Qxa5 Nxe4+ 33. Kf3 {[#]} b3 $1 34. cxb3 Ng5+ 35. Ke2 Bxb3) 32. Qb8+ $14 {[%emt 0:00:06][%mdl 1024] White has compensation.} Kg7 {[%emt 0:00:02] Threatens to win with ...b3.} 33. b3 {[%emt 0:00:19]} Nd6 {[%emt 0:00:05]} 34. f3 {[%emt 0:00:04]} Rd2 {[%emt 0:00:03]} 35. Qc7 {[%emt 0:00:16]} h5 $2 {[%emt 0:00:15]} (35... Ne8 $11 {and Black stays safe.} 36. Qxa5 Rxc2) 36. Qxa5 $18 {[%emt 0:00:44]} h4+ {[%emt 0:00:10]} 37. Kxh4 {[%emt 0:00:36]} Ne8 {[%emt 0:00:30]} (37... Nxe4 $16 {was worth a try.} 38. fxe4 Rxg2 39. Qe5+ (39. Qxb4 f6 40. Qe7+ Bf7) 39... Kh7) 38. g4 {[%emt 0:00:38]} ({Wrong is} 38. Qxb4 $2 Rxg2 39. Qe7 (39. Qxb7 $2 {gets mated.} g5+ 40. Kh5 Nf6#) 39... g5+ 40. Qxg5+ Rxg5 $19) 38... Rxc2 {[%emt 0:00:06]} 39. Qxb4 {[%emt 0:00:15]} Rg2 $2 {[%emt 0:00:08]} (39... Rc7 {is a better chance.} 40. Qb6 Rd7) 40. Qxb7 {[%emt 0:00:20]} Kh6 $2 {[%emt 0:00:12]} (40... Nf6 41. Kg5 Nh7+ 42. Kf4 g5+ 43. Ke3 Ra2) 41. f4 {[%emt 0:00:03][%cal Bf3f4,Bf4f5,Bf5g6][%mdl 32]} f6 {[%emt 0:00:07]} 42. Qe7 {[%emt 0:00:18][%csl LRe6,LRe8] White wants to mate with g5+.} Ng7 {[%emt 0:00:21]} 43. Qxf6 {[%emt 0:00:09] White threatens f5 and mate.} Bxb3 {[%emt 0:00:01]} 44. f5 {[%emt 0:00:19][%csl Gf5][%cal Rf6g6] White mates.} Kh7 {[%emt 0:00:01]} 45. fxg6+ {[%emt 0:00:20]} Kh8 {[%emt 0:00:05]} 46. Qd8+ {[%emt 0:00:06]} Bg8 {[%emt 0:00:02]} 47. a5 {[%emt 0:00:06][%cal Ba4a5,Ba5a6,Ba6a7][%mdl 32]} Ra2 {[%emt 0:00:17]} 48. Qb6 {[%emt 0:00:14]} Ne6 {[%emt 0:00:11]} 49. a6 {[%emt 0:00:13]} Kg7 {[%emt 0:00:04]} 50. Qb7+ {[%emt 0:00:08]} Kxg6 {[%emt 0:00:03]} 51. a7 {[%emt 0:00:01]} Nc5 {[%emt 0:00:28]} 52. Qc6+ {[%emt 0:00:05] Weighted Error Value: White=0.22 (precise) /Black=0.60} (52. a8=Q $142 Rxa8 53. Qxa8 Bf7 54. Qh8 Ne6 55. g5 Nxg5 56. Qh5+ Kf6 57. Qxg5+ Ke6 58. Qd8) 1-0

[Event "Chinese League Div-A Rapid 2022"]
[Site "Fuling,Chongqing"]
[Date "2022.09.16"]
[Round "9.30"]
[White "Gu, Xiaobing"]
[Black "Chu, Ruotong"]
[Result "1/2-1/2"]
[ECO "C01"]
[WhiteElo "2219"]
[BlackElo "2185"]
[Annotator "TA"]
[PlyCount "51"]
[EventDate "2022.09.07"]
[EventType "team-tourn"]
[EventCountry "CHN"]
[SourceTitle "playchess.com"]
[Source "ChessBase"]
[SourceQuality "1"]
[TimeControl "1500+10"]

{[%evp 18,51,6,8,2,-4,2,-17,15,9,17,12,8,17,27,-16,0,0,0,0,39,9,14,0,8,16,17,0,0,0,0,0,0,-45,-48,-64]} 1. e4 {[%emt 0:00:01]} e5 {[%emt 0:00:03]} 2. Nf3 {[%emt 0:00:02]} Nf6 {[%emt 0:00:02]} 3. Nxe5 {[%emt 0:00:10]} d6 {[%emt 0:00:01]} 4. Nf3 {[%emt 0:00:01]} Nxe4 {[%emt 0:00:02]} 5. d3 {[%emt 0:00:15]} Nf6 {[%emt 0:00:12]} 6. d4 {[%emt 0:00:02]} d5 {[%emt 0:00:10]} 7. Bd3 {[%emt 0:00:03]} Bd6 {[%emt 0:00:03]} 8. O-O {[%emt 0:00:04]} O-O {[%emt 0:00:02]} 9. h3 {[%emt 0:00:21]} h6 {[%emt 0:02:58]} 10. Nc3 {[%emt 0:00:19]} c6 {[%emt 0:00:39][%cal Bc7c6,Bc6c5][%mdl 32] has lost popularity (10...Re8). C01: French: Exchange Variation.} 11. Ne5 {[%emt 0:00:50]} Re8 {[%emt 0:02:53]} 12. Re1 {[%emt 0:00:03] [#]} c5 $146 {[%emt 0:02:05] The position is equal.} (12... Nbd7 $5 {[%cal Rd7e5]}) ({Predecessor:} 12... Nbd7 13. Bf4 Qc7 14. Qf3 Nxe5 15. dxe5 Rxe5 16. Bxe5 Bxe5 17. Re2 Bd7 18. Rae1 Bd6 19. Bf5 Bxf5 20. Qxf5 Qb6 {1-0 (65) Bacrot,E (2725)-Akobian,V (2647) Riadh 2017}) 13. Bf4 {[%emt 0:02:28]} Nc6 {[%emt 0:00:58]} 14. Nxc6 {[%emt 0:06:37]} Rxe1+ {[%emt 0:00:06]} 15. Qxe1 {[%emt 0:00:02]} bxc6 {[%emt 0:00:02]} 16. Be5 {[%emt 0:01:34]} Be6 {[%emt 0:03:21]} 17. dxc5 {[%emt 0:00:39]} Bxc5 {[%emt 0:00:15]} 18. Na4 {[%emt 0:00:03]} Be7 {[%emt 0:00:39]} 19. Rd1 {[%emt 0:01:45]} Nd7 {[%emt 0:00:22]} 20. Bf4 {[%emt 0:00:43]} Nc5 {[%emt 0:00:46]} 21. Nxc5 {[%emt 0:01:27]} Bxc5 {[%emt 0:00:02]} 22. c3 {[%emt 0:01:11]} Qh4 {[%emt 0:01:44]} 23. Be3 {[%emt 0:02:54]} Bxe3 {[%emt 0:00:25]} 24. Qxe3 {[%emt 0:00:01]} Qa4 {[%emt 0:00:01][%csl LRa2,LRd1]} 25. Qe2 {[%emt 0:02:31]} Qxa2 {[%emt 0:00:49]} 26. Bb1 {[%emt 0:00:01] Weighted Error Value: White=0.14 (very precise) /Black=0.09 (flawless)} 1/2-1/2

[Event "Chinese League Div-A Rapid 2022"]
[Site "Fuling,Chongqing"]
[Date "2022.09.18"]
[Round "10.1"]
[White "Xu, Xiangyu"]
[Black "Zhang, Zhong"]
[Result "1-0"]
[ECO "E51"]
[WhiteElo "2571"]
[BlackElo "2617"]
[Annotator "ChessBase"]
[PlyCount "105"]
[EventDate "2022.09.07"]
[EventType "team-tourn"]
[EventCountry "CHN"]
[SourceTitle "playchess.com"]
[Source "ChessBase"]
[SourceQuality "1"]
[TimeControl "1500+10"]

1. d4 {[%emt 0:00:03]} Nf6 {[%emt 0:00:03]} 2. c4 {[%emt 0:00:01]} e6 {[%emt 0:00:02]} 3. Nc3 {[%emt 0:00:02]} Bb4 {[%emt 0:00:04]} 4. e3 {[%emt 0:00:09]} O-O {[%emt 0:00:12]} 5. Bd2 {[%emt 0:00:07]} d5 {[%emt 0:01:41]} 6. Nf3 {[%emt 0:00:05]} a6 {[%emt 0:00:14]} 7. a3 {[%emt 0:00:36]} Be7 {[%emt 0:00:21]} 8. b4 {[%emt 0:00:08]} dxc4 {[%emt 0:00:31]} 9. Bxc4 {[%emt 0:00:03]} b6 {[%emt 0:00:03]} 10. O-O {[%emt 0:01:00]} Bb7 {[%emt 0:00:08]} 11. Rb1 {[%emt 0:00:48]} Nbd7 {[%emt 0:00:17]} 12. Qe2 {[%emt 0:00:02]} Bd6 {[%emt 0:00:40]} 13. e4 {[%emt 0:00:53]} e5 {[%emt 0:00:16]} 14. Bg5 {[%emt 0:01:42]} exd4 {[%emt 0:03:35]} 15. Nxd4 {[%emt 0:00:03]} Qe8 {[%emt 0:00:08]} 16. Rfe1 {[%emt 0:08:35]} b5 {[%emt 0:04:33]} 17. Bb3 {[%emt 0:00:37]} Qe5 {[%emt 0:02:27]} 18. Nf3 {[%emt 0:00:01]} Qxc3 {[%emt 0:00:11]} 19. Rec1 {[%emt 0:00:04]} Nxe4 {[%emt 0:00:04]} 20. Rb2 {[%emt 0:00:03]} Ng3 {[%emt 0:03:26]} 21. hxg3 {[%emt 0:01:09]} Bxf3 {[%emt 0:00:05]} 22. gxf3 {[%emt 0:00:22]} Qe5 {[%emt 0:00:13]} 23. Bf4 {[%emt 0:01:24]} Qf6 {[%emt 0:00:41]} 24. Bxd6 {[%emt 0:00:35]} cxd6 {[%emt 0:00:01]} 25. Rd2 {[%emt 0:00:12]} Rfd8 {[%emt 0:04:38]} 26. Rc7 {[%emt 0:00:23]} Rac8 {[%emt 0:00:44]} 27. Rxc8 {[%emt 0:00:02]} Rxc8 {[%emt 0:00:02]} 28. Qd1 {[%emt 0:00:03]} Rc6 {[%emt 0:01:38]} 29. Bd5 {[%emt 0:00:36]} Rb6 {[%emt 0:00:08]} 30. Rc2 {[%emt 0:00:27]} Rb8 {[%emt 0:00:44]} 31. Rc6 {[%emt 0:00:20]} Ne5 {[%emt 0:00:08]} 32. Rxa6 {[%emt 0:00:08]} g5 {[%emt 0:00:01]} 33. Kg2 {[%emt 0:00:15]} Kg7 {[%emt 0:00:35]} 34. Qd4 {[%emt 0:01:21]} Rc8 {[%emt 0:01:22]} 35. Rb6 {[%emt 0:01:48]} Nc4 {[%emt 0:00:25]} 36. Qxf6+ {[%emt 0:00:06]} Kxf6 {[%emt 0:00:01]} 37. Rxb5 {[%emt 0:00:24]} Nxa3 {[%emt 0:00:07]} 38. Rb7 {[%emt 0:00:10]} Ke5 {[%emt 0:00:05]} 39. Bxf7 {[%emt 0:00:07]} Rc2 {[%emt 0:00:29]} 40. Ra7 {[%emt 0:00:39]} Nc4 {[%emt 0:00:06]} 41. Bg8 {[%emt 0:01:04]} Ne3+ {[%emt 0:00:20]} 42. Kg1 {[%emt 0:00:04]} Nd1 {[%emt 0:00:11]} 43. Ra5+ {[%emt 0:00:55]} Kf6 {[%emt 0:00:06]} 44. Bb3 {[%emt 0:02:28]} Rc1 {[%emt 0:00:07]} 45. Kg2 {[%emt 0:00:14]} Rb1 {[%emt 0:00:01]} 46. Bc2 {[%emt 0:00:20]} Rc1 {[%emt 0:00:25]} 47. Bxh7 {[%emt 0:00:07]} Nc3 {[%emt 0:00:18]} 48. b5 {[%emt 0:00:01]} Re1 {[%emt 0:00:15]} 49. b6 {[%emt 0:00:34]} Re8 {[%emt 0:00:01]} 50. Ra3 {[%emt 0:00:06]} Nd5 {[%emt 0:00:06]} 51. b7 {[%emt 0:00:07]} Rb8 {[%emt 0:00:00]} 52. Be4 {[%emt 0:00:02]} Ne7 {[%emt 0:00:01]} 53. Ra8 {[%emt 0:00:04]} 1-0